[Event "ISR-chT 2020"]
[Site "Israel"]
[Date "2020.01.17"]
[Round "3.36"]
[White "Gorshtein, Ido"]
[Black "Greenfeld, Alon"]
[Result "1-0"]
[ECO "A31"]
[WhiteElo "2372"]
[BlackElo "2510"]
[Annotator "ChessBase"]
[PlyCount "65"]
[EventDate "2020.01.10"]
[EventType "team-tourn"]
[EventCountry "ISR"]
[SourceTitle "playchess.com"]
[Source "ChessBase"]
[SourceQuality "1"]
[TimeControl "40/5400+30:1800+30"]

1. c4 {[%emt 0:00:33]} Nf6 {[%emt 0:04:39]} 2. Nf3 {[%emt 0:00:43]} c5 {[%emt 0:03:53]} 3. d4 {[%emt 0:02:00]} cxd4 {[%emt 0:03:15]} 4. Nxd4 {[%emt 0:00:03]} e5 {[%emt 0:05:45]} 5. Nb5 {[%emt 0:10:59]} d5 {[%emt 0:02:24]} 6. cxd5 {[%emt 0:01:15]} Bc5 {[%emt 0:00:12]} 7. N5c3 {[%emt 0:01:25]} O-O {[%emt 0:01:02]} 8. e3 {[%emt 0:00:57]} e4 {[%emt 0:01:52]} 9. Be2 {[%emt 0:00:41]} Qe7 {[%emt 0:00:42]} 10. Nd2 {[%emt 0:01:22]} Rd8 {[%emt 0:05:57]} 11. a3 {[%emt 0:07:22]} a5 {[%emt 0:24:28]} 12. Qa4 {[%emt 0:10:55]} Bf5 {[%emt 0:02:18]} 13. g4 {[%emt 0:05:44]} Nxg4 {[%emt 0:14:33]} 14. Ndxe4 {[%emt 0:00:37]} b5 {[%emt 0:02:59]} 15. Bxb5 {[%emt 0:00:40]} Bb4 {[%emt 0:03:30]} 16. Ng3 {[%emt 0:03:05]} Be4 {[%emt 0:08:20]} 17. axb4 {[%emt 0:04:37]} Bxh1 {[%emt 0:01:14]} 18. Nxh1 {[%emt 0:00:13]} Na6 {[%emt 0:03:43]} 19. bxa5 {[%emt 0:07:53]} Nb4 {[%emt 0:00:16]} 20. a6 {[%emt 0:01:43]} Ne5 {[%emt 0:03:02]} 21. e4 {[%emt 0:03:53]} Ned3+ {[%emt 0:05:09]} 22. Bxd3 {[%emt 0:04:27]} Nxd3+ {[%emt 0:00:04]} 23. Ke2 {[%emt 0:00:28]} Nxc1+ {[%emt 0:01:24]} 24. Rxc1 {[%emt 0:00:03]} Rd6 {[%emt 0:00:38]} 25. Qb4 {[%emt 0:03:24]} Qd8 {[%emt 0:00:36]} 26. Qd4 {[%emt 0:03:08]} Rdxa6 {[%emt 0:00:16]} 27. Ng3 {[%emt 0:00:50]} Rb8 {[%emt 0:00:23]} 28. Rc2 {[%emt 0:00:35]} Qg5 {[%emt 0:00:51]} 29. e5 {[%emt 0:00:50]} h5 {[%emt 0:00:26]} 30. h4 {[%emt 0:01:11]} Qe7 {[%emt 0:00:35]} 31. d6 {[%emt 0:01:21]} Qe6 {[%emt 0:00:04]} 32. Nd5 {[%emt 0:00:35]} Rb5 {[%emt 0:00:44]} 33. Rc8+ {[%emt 0:00:23]} 1-0